bitfinex-derivatives/quotes_ETHF0:USTF0_20260310
["timestamp","ask_amount","ask_price","bid_price","bid_amount"]
[1773115549766,1.19082887,2029.4,2028.4,1.10004774]
[1773115550168,0.00565093,2029.4,2028.4,1.10004774]
[1773115550568,0.00565093,2029.4,2028.6,1.10004774]
[1773115550969,1.19082887,2029.4,2028.6,1.10004774]
[1773115552473,0.00565093,2029.4,2028.6,1.10004774]
[1773115555474,0.00565093,2029.4,2028.8,1.11940633]
[1773115556570,1.10631237,2030.2,2028.8,1.11940633]
[1773115556774,1.10631237,2030.0,2029.0,1.11940633]
[1773115557674,1.11234728,2030.0,2029.0,1.11940633]
[1773115558075,0.00603491,2030.0,2029.0,1.11940633]
[1773115558274,1.10631237,2030.6,2029.2,1.11940633]
[1773115558579,1.10631237,2030.5,2029.2,1.11940633]
[1773115559272,1.11228127,2030.5,2029.2,1.12383613]
[1773115561074,1.10631237,2030.2,2029.2,1.12383613]
[1773115562177,1.10631237,2029.9,2029.2,0.0044298]
[1773115562872,1.10631237,2029.9,2029.2,1.12383613]
[1773115563672,1.10631237,2029.9,2029.2,0.0044298]
[1773115564377,1.10631237,2029.9,2029.2,1.15578074]
[1773115564678,1.13777765,2030.4,2029.2,1.15578074]
[1773115568578,1.13777765,2030.2,2029.2,1.15578074]
[1773115568882,1.13777765,2030.1,2029.2,1.15578074]
[1773115579081,1.13777765,2029.9,2029.2,1.15578074]
[1773115587285,7.74789392,2029.8,2029.2,1.15578074]
[1773115587491,1.13777765,2029.8,2029.2,1.15578074]
[1773115591790,1.13777765,2029.8,2029.2,0.0044298]
[1773115591995,1.13777765,2029.6,2029.2,0.0044298]
[1773115592192,1.13777765,2029.6,2029.2,1.15578074]
[1773115592594,1.13777765,2029.9,2029.2,1.15578074]
[1773115592794,1.13777765,2029.7,2029.2,1.15578074]
[1773115594290,1.11999676,2029.9,2029.2,1.15578074]
[1773115595995,1.11999676,2030.3,2029.4,1.17428728]
[1773115596300,1.11999676,2030.1,2029.5,1.17428728]
[1773115596600,1.11999676,2030.1,2029.3,1.17428728]
[1773115598698,1.11999676,2029.9,2029.3,1.17428728]
[1773115601002,1.11999676,2030.0,2029.3,1.17428728]
[1773115605404,1.11999676,2030.3,2029.4,1.17428728]
[1773115605606,1.11999676,2030.3,2029.7,1.17428728]
[1773115617016,1.11999676,2030.3,2029.2,2.96890095]
[1773115617216,1.11999676,2030.3,2029.4,1.23183575]
[1773115624117,1.11999676,2030.3,2029.2,1.21361489]
[1773115624418,2.71809115,2029.4,2028.4,1.20918509]
[1773115624620,1.1938839,2029.2,2028.4,1.20918509]
[1773115624825,1.1938839,2029.0,2028.3,1.20918509]
[1773115625221,1.19889048,2029.0,2028.3,1.21423102]
[1773115625624,1.19889048,2029.0,2028.3,0.00504593]
[1773115627720,1.19889048,2029.0,2028.0,1.20918509]
[1773115628026,1.19889048,2029.0,2027.7,1.20918509]
[1773115628226,1.1938839,2028.8,2027.7,1.20918509]
[1773115628819,1.1938839,2028.8,2027.7,1.21542721]
[1773115629130,1.1938839,2028.6,2027.7,0.00624212]
[1773115630233,7.6488839,2028.6,2027.7,0.00624212]
[1773115630422,1.1938839,2028.5,2027.7,0.00624212]
[1773115633526,1.1938839,2028.5,2027.7,1.21542721]
[1773115634526,1.1938839,2028.9,2027.8,1.20918509]
[1773115635127,0.00500658,2029.0,2028.0,1.20918509]
[1773115635327,0.00500658,2029.0,2028.1,1.20918509]
[1773115635528,1.1938839,2029.5,2028.4,1.20918509]
[1773115635732,1.1938839,2029.5,2028.5,1.20918509]
[1773115635933,1.1938839,2029.5,2028.6,1.20918509]
[1773115636123,10.53945729,2030.3,2028.6,1.20918509]
[1773115636124,1.1938839,2030.2,2028.6,1.20918509]
[1773115636724,1.19804554,2030.2,2028.6,1.20918509]
[1773115638328,1.19804554,2030.2,2028.8,1.20918509]
[1773115638529,1.19804554,2030.2,2029.0,1.20918509]
[1773115638725,1.19804554,2030.2,2028.9,10.14449729]
[1773115638726,1.19804554,2030.2,2029.2,1.20918509]
[1773115638922,0.00416164,2030.2,2029.3,1.20918509]
[1773115639632,0.00416164,2030.2,2029.3,1.45555509]
[1773115640334,1.1938839,2030.6,2029.3,1.45555509]
[1773115641331,1.1938839,2030.6,2029.5,1.20918509]
[1773115641332,1.19885635,2030.6,2029.5,1.20918509]
[1773115647136,0.00497245,2030.6,2029.5,1.20918509]
[1773115647642,1.19885635,2030.6,2029.5,1.20918509]
[1773115648036,0.00497245,2030.6,2029.5,1.20918509]
[1773115648235,1.19885635,2030.6,2029.5,1.20918509]
[1773115650638,0.00497245,2030.6,2029.5,1.20918509]
[1773115651042,1.19885635,2030.6,2029.5,1.20918509]
[1773115651242,1.19885635,2030.6,2029.7,1.20918509]
[1773115651438,1.19885635,2030.6,2029.9,1.20918509]
[1773115651840,1.1938839,2031.0,2029.9,1.20918509]
[1773115652037,1.1938839,2030.7,2029.9,1.20918509]
[1773115652242,1.1938839,2030.7,2030.1,1.20918509]
[1773115652835,1.1938839,2031.0,2030.1,1.20918509]
[1773115653046,1.1938839,2032.1,2030.7,1.20918509]
[1773115653241,1.1938839,2031.9,2030.7,1.20918509]
[1773115653442,1.1938839,2031.9,2030.5,1.10620798]
[1773115653642,1.1938839,2031.9,2030.7,1.10620798]
[1773115653846,1.19770017,2031.9,2030.7,1.11212233]
[1773115654143,1.19770017,2031.9,2030.8,1.10620798]
[1773115654442,5.36910503,2032.5,2031.2,1.10620798]
[1773115654443,1.14926967,2032.5,2031.2,1.10620798]
[1773115654642,0.24605,2032.0,2030.8,1.10620798]
[1773115654941,1.39531967,2032.0,2030.7,0.00591435]
[1773115655147,1.14926967,2031.8,2030.7,0.00591435]
[1773115655341,1.15435171,2031.8,2030.7,0.00591435]
[1773115656143,1.15435171,2031.8,2030.7,1.11212233]
[1773115660848,1.15435171,2031.8,2030.7,0.00591435]
[1773115661045,1.15435171,2031.8,2030.7,1.11212233]
[1773115665157,0.00508204,2031.8,2030.7,1.11212233]
[1773115665352,0.00508204,2031.8,2030.8,4.08245729]
[1773115665652,0.00508204,2031.8,2031.0,1.10620798]
[1773115665856,0.00508204,2031.8,2031.2,1.10620798]
[1773115666051,1.14926967,2032.1,2031.2,1.10620798]
[1773115667251,1.15402549,2032.1,2031.2,1.10620798]
[1773115668952,1.15402549,2032.1,2031.3,1.10620798]
[1773115670256,1.14926967,2032.6,2031.4,1.10620798]
[1773115670759,1.1951274,2032.4,2031.4,1.10620798]
[1773115671256,1.4411374,2032.3,2031.2,1.09508213]
[1773115672154,1.1951274,2032.1,2031.2,1.09508213]
[1773115672657,1.1951274,2032.1,2031.0,1.09508213]
[1773115672857,1.1951274,2032.1,2030.8,1.09508213]
[1773115672858,1.1951274,2031.9,2030.8,1.09508213]
[1773115673558,1.1951274,2031.7,2030.8,1.09508213]
[1773115677660,1.1951274,2032.3,2031.1,1.09508213]
[1773115678563,1.1951274,2032.1,2030.9,1.09508213]
[1773115678761,1.1951274,2031.9,2030.9,1.09508213]
[1773115680357,1.1951274,2031.7,2030.9,1.09508213]
[1773115681773,1.1951274,2031.5,2030.9,1.09508213]
[1773115683764,1.1951274,2031.5,2030.8,1.14024088]
[1773115684772,1.09462049,2031.3,2030.7,1.14615523]
[1773115685978,1.09462049,2031.3,2030.7,0.00591435]
[1773115687077,1.09462049,2031.3,2030.7,1.14615523]
[1773115687975,1.09462049,2031.3,2030.7,0.00591435]
[1773115690678,1.09462049,2031.3,2030.7,1.14615523]
[1773115691577,1.09462049,2031.3,2030.7,0.00591435]
[1773115692281,1.09462049,2031.3,2030.7,1.14615523]
[1773115695879,1.09462049,2031.3,2030.7,0.00591435]
[1773115696184,1.09462049,2031.1,2030.1,1.14024088]
[1773115696982,1.09462049,2031.1,2030.1,1.14442297]
[1773115704387,4.06044632,2031.4,2030.1,1.14442297]
[1773115704588,1.09462049,2031.2,2030.1,1.14442297]
[1773115704987,1.09462049,2031.2,2030.3,1.14024088]
[1773115705686,1.09462049,2031.3,2030.3,1.14024088]
[1773115707095,1.09462049,2031.3,2030.4,1.14024088]
[1773115710692,1.09462049,2031.1,2030.4,1.14024088]
[1773115711595,1.09462049,2031.4,2030.4,1.14024088]
[1773115711795,7.72020525,2031.3,2030.4,1.14024088]
[1773115712098,1.09462049,2031.3,2030.4,1.14024088]
[1773115714098,1.11722198,2031.5,2030.4,1.14024088]
[1773115714396,1.11722198,2031.7,2030.8,1.15801018]
[1773115714597,1.11722198,2031.9,2030.9,1.15801018]
[1773115714798,7.75035628,2031.8,2030.9,1.15801018]
[1773115714992,1.11722198,2031.8,2030.9,1.15801018]
[1773115715495,1.11722198,2032.0,2031.1,1.15801018]
[1773115715701,1.11722198,2032.2,2031.1,1.15801018]
[1773115716200,0.00577307,2032.4,2031.1,1.15801018]
[1773115716401,1.11722198,2032.3,2031.3,1.15801018]
[1773115716601,0.00577307,2032.4,2031.3,1.15801018]
[1773115716803,0.00577307,2032.4,2031.5,1.15801018]
[1773115717001,0.00577307,2032.4,2031.7,1.15801018]
[1773115717196,0.00577307,2032.4,2031.7,1.16335274]
[1773115717501,1.12299505,2032.4,2031.7,0.00534256]
[1773115721902,1.11722198,2032.3,2031.7,0.00534256]
[1773115726208,1.36324198,2032.3,2031.3,1.15801018]
[1773115726603,1.36324198,2032.3,2030.9,1.15801018]
[1773115727410,1.36324198,2032.3,2030.9,1.16199073]
[1773115728010,1.11722198,2032.1,2030.9,1.16199073]
[1773115729614,1.15368675,2031.9,2030.9,1.16199073]
[1773115729810,1.15368675,2031.7,2030.9,1.16199073]
[1773115736425,1.15368675,2031.6,2030.9,1.16199073]
[1773115741020,1.15368675,2031.6,2030.4,1.07604902]
[1773115741328,1.15368675,2031.4,2030.4,1.07604902]
[1773115742027,1.15368675,2031.4,2030.4,1.07972143]
[1773115750728,1.07112819,2031.2,2030.4,1.07972143]
[1773115751728,1.07112819,2031.2,2030.4,0.00367241]
[1773115751930,1.07112819,2031.0,2030.0,1.14687013]
[1773115752133,1.07112819,2030.8,2030.0,1.14687013]
[1773115752630,1.07112819,2030.8,2029.5,1.14687013]
[1773115752832,1.07112819,2030.6,2029.5,1.15124807]
[1773115753033,6.54293733,2030.5,2029.5,1.15124807]
[1773115753235,1.07112819,2030.4,2029.5,1.15124807]
[1773115755537,1.07112819,2030.4,2029.1,1.14687013]
[1773115755840,1.07112819,2030.1,2028.6,1.14687013]
[1773115756038,1.07112819,2029.9,2028.6,1.14687013]
[1773115756237,1.07112819,2029.7,2028.6,1.14687013]
[1773115756641,1.07112819,2029.6,2028.6,1.15153227]
[1773115758135,1.07112819,2029.6,2028.6,0.00466214]
[1773115759942,1.07112819,2029.6,2028.6,1.15153227]
[1773115761244,1.07112819,2029.5,2028.6,0.00466214]
[1773115762146,4.08068773,2029.6,2028.6,0.00466214]
[1773115762147,1.07112819,2029.3,2028.6,0.00466214]
[1773115762340,1.07460104,2029.3,2028.6,0.00466214]
[1773115763452,1.07460104,2029.3,2028.6,1.15153227]
[1773115767254,1.07112819,2029.2,2028.6,1.15153227]
[1773115769355,1.07112819,2029.2,2028.6,0.00466214]
[1773115769661,1.07112819,2029.2,2028.4,1.14687013]
[1773115770456,1.07112819,2029.2,2028.2,1.14687013]
[1773115770659,1.07112819,2029.1,2028.2,1.15067902]
[1773115772358,0.00347285,2029.3,2028.2,1.39717902]
[1773115772359,1.07112819,2029.2,2028.2,1.39717902]
[1773115772564,1.07460104,2029.3,2028.5,1.14687013]
[1773115780462,1.11190989,2029.1,2028.3,1.12617745]
[1773115781265,1.11190989,2028.9,2028.2,0.00380889]
[1773115781768,1.11190989,2028.7,2027.6,1.12617745]
[1773115782265,1.11190989,2028.5,2027.6,1.12617745]
[1773115782769,1.11190989,2028.5,2027.6,1.13093141]
[1773115786767,1.11190989,2028.7,2027.8,1.12617745]
[1773115790173,7.56890989,2028.9,2027.8,1.12617745]
[1773115790373,7.65644104,2028.8,2027.8,1.12617745]
[1773115790571,1.11190989,2028.8,2028.0,1.12617745]
[1773115790772,1.11190989,2029.0,2028.0,1.12617745]
[1773115796780,1.12399914,2030.1,2028.9,6.06208]
[1773115796971,1.12399914,2030.4,2029.6,4.08068773]
[1773115797772,1.1297818,2030.4,2029.6,0.00362211]
[1773115798478,1.21301416,2030.2,2029.6,0.00362211]
[1773115798878,8.53695659,2030.2,2029.6,0.00362211]
[1773115799081,1.21879682,2030.4,2029.6,0.00362211]
[1773115799281,1.21879682,2030.4,2029.6,13.28062211]
[1773115799981,1.21879682,2030.4,2029.6,17.36130984]
[1773115800578,1.21879682,2030.4,2029.6,13.28062211]
[1773115800780,1.21879682,2030.4,2029.6,0.00362211]
[1773115801082,1.21317423,2030.3,2029.6,0.00362211]
[1773115801674,0.00578266,2030.4,2029.6,0.00362211]
[1773115801879,1.21892461,2030.4,2029.6,4.08430984]
[1773115802778,0.00578266,2030.4,2029.6,4.08430984]
[1773115802984,1.21045798,2031.2,2029.9,4.08068773]
[1773115803184,1.21045798,2031.2,2030.0,13.293]
[1773115803980,1.21601581,2031.2,2030.0,13.293]
[1773115804378,1.20551233,2031.6,2030.3,6.05791]
[1773115804578,1.20551233,2031.6,2030.5,4.08068773]
[1773115804778,1.20551233,2031.6,2030.3,0.24625]
[1773115804983,1.20551233,2031.5,2030.4,54.101]
[1773115805183,1.20551233,2031.5,2030.4,40.8]
[1773115805384,1.20551233,2031.5,2030.5,13.303]
[1773115805585,1.20547898,2031.4,2030.5,13.303]
[1773115806780,0.00517168,2031.5,2030.5,13.303]
[1773115806982,1.20817308,2031.5,2030.5,13.303]
[1773115807379,1.20817308,2031.5,2030.5,17.38368773]
[1773115814896,1.20226677,2031.3,2030.4,40.8]
[1773115815096,1.20226677,2031.3,2030.3,13.349]
[1773115815498,1.20229862,2031.2,2030.3,54.149]
[1773115815898,1.20229862,2030.9,2030.3,54.149]
[1773115816098,1.20229862,2030.9,2030.3,13.349]
[1773115816999,7.32394243,2030.8,2030.3,13.349]
[1773115819096,1.20229862,2030.9,2030.3,13.349]
[1773115819393,1.19853395,2031.4,2030.3,13.349]
[1773115819594,8.52250786,2031.1,2030.3,13.349]
[1773115819801,1.19856543,2031.1,2030.3,13.349]
[1773115820100,7.32394243,2030.9,2030.3,13.349]
[1773115820503,1.19865235,2031.4,2030.3,13.349]
[1773115821196,7.32394243,2031.3,2030.3,13.349]
[1773115821604,8.52262558,2031.3,2030.3,13.349]
[1773115821998,8.52262558,2031.3,2030.4,0.24624]
[1773115822199,1.20385483,2031.5,2030.4,0.24624]
[1773115822403,1.19835111,2031.4,2030.4,0.24624]
[1773115822802,8.52229354,2031.3,2030.4,0.24624]
[1773115823003,1.19835111,2031.3,2030.4,0.24624]
[1773115823399,8.52229354,2031.3,2030.4,0.24624]
[1773115824502,7.32394243,2031.2,2030.4,0.24624]
[1773115826107,7.32394243,2031.1,2030.4,0.24624]
[1773115826308,1.19835111,2031.3,2030.4,0.24624]
[1773115826510,7.32394243,2031.2,2030.4,0.24624]
[1773115826710,8.00348694,2031.2,2030.5,13.429]
[1773115826909,1.19994451,2031.4,2030.5,13.429]
[1773115827104,6.80354243,2031.2,2030.5,13.429]
[1773115827511,1.19994451,2031.3,2030.5,13.429]
[1773115827811,6.80354243,2031.1,2030.5,13.429]
[1773115828213,6.80354243,2031.0,2030.5,13.429]
[1773115828513,1.19994451,2031.3,2030.5,13.429]
[1773115828713,6.80354243,2031.1,2030.5,13.429]
[1773115829210,6.80354243,2031.0,2030.5,13.429]
[1773115829512,1.19994451,2031.3,2030.5,13.429]
[1773115829711,6.80354243,2031.0,2030.6,13.45]
[1773115829912,1.20056727,2031.1,2030.6,13.45]
[1773115830115,6.80354243,2030.9,2030.6,13.45]
[1773115830314,1.20056727,2031.1,2030.6,13.45]
[1773115830714,6.80354243,2030.8,2030.6,13.45]
[1773115830910,1.20056727,2031.1,2030.6,13.45]
[1773115831109,5.16386934,2030.8,2030.6,13.45]
[1773115831305,1.20056727,2031.1,2030.6,13.45]
[1773115831611,1.20056727,2031.1,2030.5,13.464]
[1773115831810,1.20056727,2031.1,2030.5,13.465]
[1773115834112,1.20056727,2031.1,2030.6,0.19121679]
[1773115834317,1.16749688,2031.3,2030.6,0.19121679]
[1773115834518,1.17266856,2031.5,2030.6,0.19121679]
[1773115835218,0.65544856,2031.5,2030.8,0.71313015]
[1773115835418,1.15021215,2031.8,2030.8,0.71313015]
[1773115836418,1.15649061,2031.8,2030.8,0.71313015]
[1773115836821,1.15649061,2031.8,2031.0,1.0576666]
[1773115839125,1.15021215,2032.0,2031.2,1.24839635]
[1773115839325,1.15021215,2032.2,2031.4,1.24839635]
[1773115839525,1.32393375,2032.3,2031.6,1.24839635]
[1773115839926,2.4741459,2032.3,2031.6,1.24839635]
[1773115840126,1.15021215,2032.2,2031.5,55.56339635]
[1773115840420,1.15510458,2032.2,2031.6,1.24839635]
[1773115842020,1.15021215,2032.4,2031.6,1.24839635]
[1773115842226,1.15021215,2032.4,2031.7,14.77139635]
[1773115843028,1.15599067,2032.4,2031.7,14.77139635]
[1773115843723,1.15599067,2032.4,2031.8,1.24839635]
[1773115844823,1.15021215,2032.6,2031.8,1.24839635]
[1773115845024,0.77723161,2033.3,2032.3,1.24839635]
[1773115845224,1.15021215,2033.5,2032.5,1.24839635]
[1773115845825,1.15021215,2033.7,2032.5,1.24839635]
[1773115846129,0.00604149,2033.5,2032.5,1.24839635]
[1773115846332,1.15625364,2033.5,2032.7,1.24839635]
[1773115846832,0.00604149,2033.5,2032.7,1.24839635]
[1773115847428,1.25021215,2034.9,2033.3,1.24839635]
[1773115847731,1.25021215,2034.9,2033.5,1.24839635]
[1773115848223,1.25646179,2034.9,2033.9,1.24839635]
[1773115848730,1.25646179,2034.9,2033.7,14.79939635]
[1773115849126,1.25646179,2034.9,2033.8,1.24839635]
[1773115850427,1.25646179,2034.9,2033.7,13.551]
[1773115850832,1.25646179,2034.9,2033.7,14.78861435]
[1773115851022,1.25646179,2034.9,2033.7,13.551]
[1773115851224,1.25646179,2034.9,2033.8,1.23761435]
[1773115851431,1.25646179,2034.9,2033.6,1.23761435]
[1773115851730,1.25646179,2034.9,2033.5,1.24264881]
[1773115851927,1.25646179,2034.9,2033.5,0.00503446]
[1773115852122,1.26926687,2034.7,2033.5,0.00503446]
[1773115852728,1.26926687,2034.7,2033.2,14.79561435]
[1773115853026,1.26926687,2034.5,2033.0,1.23761435]
[1773115853228,1.26926687,2034.3,2033.0,1.23761435]
[1773115853626,1.26926687,2034.3,2033.0,0.00550397]
[1773115855331,1.26926687,2033.9,2033.0,0.00550397]
[1773115855535,1.26926687,2033.9,2032.8,13.558]
[1773115855736,1.26926687,2033.9,2032.7,1.23761435]
[1773115855939,1.26926687,2033.7,2032.1,1.23761435]
[1773115856434,1.26926687,2033.7,2032.1,1.24323467]
[1773115857134,1.26926687,2033.5,2032.1,1.24323467]
[1773115858442,1.26926687,2033.3,2032.1,1.24323467]
[1773115858645,1.27461114,2033.3,2032.1,1.24323467]
[1773115859735,1.26926687,2033.1,2032.1,0.00562032]
[1773115860434,1.26926687,2032.9,2031.7,1.23761435]
[1773115860833,1.26926687,2032.9,2031.5,1.23761435]
[1773115861232,1.26926687,2032.7,2031.5,1.23761435]
[1773115861434,1.26926687,2032.7,2031.5,1.24340798]
[1773115862140,1.26926687,2032.6,2031.5,1.24340798]
[1773115862440,1.26926687,2032.6,2031.7,1.23761435]
[1773115862834,1.26926687,2032.6,2031.8,1.23761435]
[1773115863234,1.26926687,2033.2,2032.0,1.23761435]
[1773115865241,1.23737805,2033.0,2031.6,1.23876399]
[1773115867943,1.23737805,2033.0,2031.8,1.23876399]
[1773115872342,1.23737805,2033.0,2032.0,1.23876399]
[1773115872539,1.23737805,2033.2,2032.2,1.23876399]
[1773115872737,1.24272232,2033.3,2032.2,1.23876399]
[1773115876548,1.23737805,2033.0,2031.6,1.23876399]
[1773115878052,1.23737805,2033.0,2031.8,1.23876399]
[1773115879149,1.23737805,2033.0,2031.9,1.23876399]
[1773115886058,1.23737805,2032.8,2031.9,1.23876399]
[1773115899269,1.19169394,2032.6,2031.9,1.23876399]
[1773115899765,1.19169394,2032.7,2031.9,1.23876399]
[1773115900069,1.19169394,2033.0,2031.9,1.23876399]
[1773115900270,1.19169394,2032.8,2031.9,1.23876399]
[1773115900665,6.09188873,2033.3,2032.3,1.19061327]
[1773115900666,4.04610394,2033.2,2032.3,1.19061327]
[1773115900864,1.19703821,2033.3,2032.4,1.19061327]
[1773115901271,1.19703821,2033.3,2032.5,1.19061327]
[1773115903564,1.19169394,2033.9,2032.8,0.24595]
[1773115903869,1.19169394,2033.9,2033.0,1.19061327]
[1773115904571,1.19654174,2033.9,2033.0,1.19595963]
[1773115905776,0.0048478,2033.9,2033.0,1.19595963]
[1773115906478,0.0048478,2033.9,2033.3,1.19061327]
[1773115907276,1.19654174,2033.9,2033.5,1.19061327]
[1773115907682,0.0048478,2033.9,2033.5,1.19061327]
[1773115907878,1.19169394,2034.1,2033.5,1.19061327]
[1773115908279,1.19169394,2034.7,2033.5,1.19061327]
[1773115908480,1.19169394,2034.5,2033.5,1.19061327]
[1773115908877,1.19598793,2034.5,2033.5,1.19061327]
[1773115913183,1.19598793,2034.5,2033.6,1.10457637]
[1773115913575,1.19598793,2034.5,2033.7,1.10457637]
[1773115913779,1.12909263,2034.5,2033.7,1.10457637]
[1773115918187,1.12909263,2034.5,2033.5,13.382]
[1773115918387,1.12909263,2034.5,2033.6,1.10457637]
[1773115919390,1.12909263,2034.5,2033.4,1.10457637]
[1773115920384,1.12479864,2034.4,2033.4,1.10457637]
[1773115920691,1.12479864,2034.4,2033.6,1.10457637]
[1773115921483,0.00429399,2034.5,2033.6,1.10457637]
[1773115921484,0.00429399,2034.5,2033.7,1.35041637]
[1773115921692,1.12479864,2034.7,2033.7,1.35041637]
[1773115921896,1.22479864,2034.9,2033.7,1.35041637]
[1773115922585,1.22479864,2034.9,2033.9,1.10457637]
[1773115922783,1.22923374,2034.9,2033.9,1.10457637]
[1773115923584,1.22923374,2034.9,2034.0,1.10087519]
[1773115926496,1.22923374,2034.9,2033.8,1.10087519]
[1773115931792,0.24571,2034.8,2033.8,1.10087519]
[1773115931998,1.07670958,2034.6,2033.5,1.10087519]
[1773115933304,1.07670958,2034.4,2033.5,1.10087519]
[1773115933905,1.07670958,2034.4,2033.2,1.10087519]
[1773115934499,1.07670958,2034.2,2033.2,1.10087519]
[1773115938310,1.07670958,2034.3,2033.2,1.10087519]
[1773115938511,1.07670958,2034.3,2033.4,1.10087519]
[1773115938708,1.07670958,2034.7,2033.5,1.10087519]
[1773115938904,7.32341752,2034.6,2033.5,1.10087519]
[1773115939106,1.07670958,2034.6,2033.5,1.10087519]
[1773115939302,1.07670958,2034.6,2033.7,1.10087519]
[1773115939611,1.07670958,2034.8,2033.9,1.10087519]
[1773115941414,1.07670958,2034.6,2033.6,1.10087519]
[1773115942114,1.07670958,2034.8,2033.6,1.10087519]
[1773115942415,1.07670958,2034.6,2033.6,1.10087519]
[1773115943413,1.07670958,2034.4,2033.6,1.10087519]
[1773115946910,4.18085382,2034.9,2033.6,1.10087519]
[1773115947111,1.07670958,2034.7,2033.6,1.34671519]
[1773115947313,1.18114468,2034.9,2033.6,1.34671519]
[1773115947516,1.07670958,2034.7,2033.6,1.34671519]
[1773115948716,1.18114468,2034.9,2033.6,1.34671519]
[1773115949817,1.18114468,2034.9,2033.8,1.10087519]
[1773115960520,1.18114468,2034.9,2033.9,1.14699664]
[1773115960921,1.11993593,2034.5,2033.3,1.14699664]
[1773115961122,1.11993593,2034.3,2033.3,1.14699664]
[1773115961324,1.11993593,2034.1,2033.3,1.14699664]
[1773115961525,1.11993593,2034.3,2033.3,1.14699664]
[1773115961922,1.11993593,2034.7,2033.5,1.14699664]
[1773115962127,1.11993593,2034.7,2033.7,1.14699664]
[1773115963030,1.11993593,2034.5,2033.7,1.14699664]
[1773115965829,1.12437103,2034.9,2033.9,1.14699664]
[1773115980336,1.08055301,2034.7,2033.7,1.10353705]
[1773115985446,1.05597453,2034.5,2033.7,1.10353705]
[1773115988035,1.05597453,2034.8,2033.7,1.10353705]
[1773115990040,1.06040963,2034.9,2033.9,1.05547253]
[1773115990246,1.06040963,2034.9,2033.5,29.73711867]
[1773115990247,1.06040963,2034.9,2034.1,1.05547253]
[1773115990944,1.06040963,2034.9,2033.6,1.05547253]
[1773115993546,1.05597453,2034.7,2033.6,1.05547253]
[1773115995346,1.05597453,2034.7,2033.5,13.387]
[1773115995347,1.05597453,2034.7,2033.8,1.05547253]
[1773116008253,1.05597453,2034.5,2033.8,1.05547253]
[1773116009752,1.05597453,2034.5,2033.6,1.05547253]
[1773116011446,0.0044351,2034.9,2033.6,1.30131253]
[1773116011654,1.05597453,2034.7,2033.6,1.30131253]
[1773116019263,1.05597453,2034.7,2033.8,1.05432644]
[1773116027577,1.05597453,2034.7,2034.1,3.75944866]
[1773116027973,1.05597453,2034.7,2034.2,1.05432644]
[1773116032080,1.0539401,2034.6,2033.9,1.08444277]
[1773116034776,1.0539401,2034.3,2033.7,1.08444277]
[1773116034977,1.0539401,2034.3,2033.5,1.08444277]
[1773116035582,1.0539401,2034.1,2033.4,1.08444277]
[1773116035781,1.0539401,2034.1,2033.6,1.08444277]
[1773116040683,1.0539401,2034.1,2033.5,2.70512222]
[1773116040684,1.0539401,2034.3,2033.8,1.08444277]
[1773116040875,1.0539401,2034.3,2034.0,1.08444277]
[1773116042177,1.0539401,2034.4,2034.0,1.08444277]
[1773116042371,1.0539401,2034.7,2034.0,1.08444277]
[1773116043183,1.0539401,2034.7,2034.4,1.08444277]
[1773116043981,1.13233373,2034.8,2034.4,1.08444277]
[1773116044281,1.13233373,2034.8,2034.0,1.1087051]
[1773116046081,1.13233373,2034.8,2034.1,2.70512222]
[1773116046380,1.13233373,2034.8,2034.2,1.1087051]
[1773116047383,1.13676883,2034.9,2034.4,1.1087051]
[1773116048283,1.13676883,2034.9,2034.5,1.1087051]
[1773116048483,1.13676883,2034.9,2034.5,1.11349704]
[1773116049484,2.57514392,2035.1,2034.5,1.11349704]
[1773116050479,1.13233373,2035.0,2034.5,1.11349704]
[1773116050685,1.09241133,2035.1,2034.9,1.1087051]
[1773116050886,1.13233373,2035.0,2034.7,1.1087051]
[1773116051178,0.00412386,2035.1,2034.7,1.1087051]
[1773116051383,1.13645759,2035.1,2034.7,1.1087051]
[1773116053981,4.32760016,2035.9,2034.6,2.70512222]
[1773116053982,1.13233373,2035.5,2034.9,3.81382732]
[1773116054187,1.13233373,2035.5,2035.0,1.1087051]
[1773116054884,1.13657885,2035.5,2035.0,1.1087051]
[1773116056783,1.13657885,2035.5,2034.8,1.1087051]
[1773116057087,1.13233373,2035.4,2034.8,1.1087051]
[1773116057485,3.83745595,2035.4,2034.6,1.1087051]
[1773116057685,1.13233373,2035.3,2034.6,1.1087051]
[1773116058387,1.13233373,2034.9,2034.5,0.00479194]
[1773116058586,1.13233373,2034.9,2034.0,2.95092222]
[1773116058587,1.13233373,2034.9,2034.3,1.1087051]
[1773116058788,1.13233373,2034.9,2034.1,1.1087051]
[1773116059087,1.13233373,2034.7,2034.1,1.1087051]
[1773116059485,1.13233373,2034.5,2033.9,1.1087051]
[1773116059686,1.13233373,2034.5,2033.9,1.11489871]
[1773116060682,1.13233373,2034.5,2034.0,1.1087051]
[1773116062381,1.13233373,2034.5,2033.9,0.00619361]
[1773116063686,1.13233373,2034.5,2033.9,1.11489871]
[1773116065585,1.13233373,2034.8,2033.9,1.11489871]
[1773116066991,1.13233373,2034.8,2034.0,1.1087051]
[1773116069583,1.13233373,2034.8,2033.9,1.11489871]
[1773116073293,2.70575624,2034.7,2033.9,0.00619361]
[1773116073499,1.13233373,2034.6,2033.5,1.09571798]
[1773116074495,1.13233373,2034.6,2033.5,1.10174176]
[1773116075395,1.13233373,2034.6,2033.5,3.807498]
[1773116075595,1.13233373,2034.6,2033.6,1.09571798]
[1773116078202,1.13233373,2034.6,2033.8,1.09571798]
[1773116079699,1.13233373,2034.6,2033.8,1.34154798]
[1773116079900,1.0631175,2035.2,2034.1,1.09571798]
[1773116080101,1.0631175,2035.0,2034.1,1.09571798]
[1773116081404,1.0631175,2035.3,2034.1,1.09571798]
[1773116084604,1.0631175,2035.1,2034.1,1.09571798]
[1773116091309,1.0631175,2034.9,2034.1,1.09571798]
[1773116100914,10.52101016,2035.1,2033.6,1.11840828]
[1773116100915,1.03908745,2034.5,2033.6,1.11840828]
[1773116101313,1.03908745,2034.3,2033.6,1.11840828]
[1773116110819,1.03908745,2034.3,2033.5,0.00602378]
[1773116110820,1.1144494,2033.9,2033.3,1.11259829]
[1773116111021,1.1144494,2033.9,2032.9,13.059]
[1773116111022,1.1144494,2033.6,2032.9,1.11259829]
[1773116111820,1.11897303,2033.6,2032.9,1.11768248]
[1773116112628,1.1144494,2033.4,2032.7,1.11259829]
[1773116112923,1.1144494,2033.4,2032.6,1.11259829]
[1773116113119,1.1144494,2033.4,2032.2,1.11259829]
[1773116113315,1.1144494,2033.1,2032.2,1.11259829]
[1773116113714,1.1144494,2032.9,2032.2,0.00365097]
[1773116113924,7.5554494,2032.9,2032.2,0.00365097]
[1773116114121,1.1144494,2032.8,2032.2,0.00365097]
[1773116115417,1.1144494,2032.8,2031.7,1.11259829]
[1773116116523,1.1144494,2032.8,2031.7,1.11898222]
[1773116116923,1.1144494,2033.2,2031.7,1.11898222]
[1773116117127,1.1144494,2033.2,2032.1,1.11259829]
[1773116117421,1.1144494,2033.5,2032.3,1.11259829]
[1773116118220,1.1144494,2033.5,2032.4,0.246]